Workbook

Sheet Лист1
A1: фио | B1: ПК | C1: ЖК | D1: МБ | E1: КОРОБКА | F1: всего УП | G1: %
A2: Лопух И.О. | B2: =[1]Лист1!B3 -> 4 | C2: =[1]Лист1!C3 -> 0 | D2: =[1]Лист1!D3 -> 0 | E2: =[1]Лист1!E3 -> 0 | F2: =SUMPRODUCT(B2:E2,A12:D12) -> 4.8 | G2: =F2/F12*100 -> 18.46153846
A3: Татарин Д.Л. | B3: =[1]Лист1!B4 -> 5 | C3: =[1]Лист1!C4 -> 0 | D3: =[1]Лист1!D4 -> 0 | E3: =[1]Лист1!E4 -> 0 | F3: =SUMPRODUCT(B3:E3,A13:D13) -> 6 | G3: =F3/F13*100 -> 23.07692308
A4: Ретон Ж.Л. | B4: =[1]Лист1!B5 -> 6 | C4: =[1]Лист1!C5 -> 0 | D4: =[1]Лист1!D5 -> 0 | E4: =[1]Лист1!E5 -> 0 | F4: =SUMPRODUCT(B4:E4,A14:D14) -> 7.2 | G4: =F4/F14*100 -> 27.69230769
A5: Пронет Ш.З. | B5: =[1]Лист1!B6 -> 7 | C5: =[1]Лист1!C6 -> 0 | D5: =[1]Лист1!D6 -> 0 | E5: =[1]Лист1!E6 -> 0 | F5: =SUMPRODUCT(B5:E5,A15:D15) -> 8.4 | G5: =F5/F15*100 -> 32.30769231
A6: Доля Щ.Н. | B6: =[1]Лист1!B8 -> 9 | C6: =[1]Лист1!C8 -> 0 | D6: =[1]Лист1!D8 -> 0 | E6: =[1]Лист1!E8 -> 0 | F6: =SUMPRODUCT(B6:E6,A16:D16) -> 10.8 | G6: =F6/F16*100 -> 41.53846154
A7: Процент Ю.Б. | B7: =[1]Лист1!B7 -> 13 | C7: =[1]Лист1!C7 -> 0 | D7: =[1]Лист1!D7 -> 0 | E7: =[1]Лист1!E7 -> 0 | F7: =SUMPRODUCT(B7:E7,A17:D17) -> 15.6 | G7: =F7/F17*100 -> 60
A8: Галуза А.О. | B8: =[1]Лист1!B2 -> 15 | C8: =[1]Лист1!C2 -> 0 | D8: =[1]Лист1!D2 -> 0 | E8: =[1]Лист1!E2 -> 0 | F8: =SUMPRODUCT(B8:E8,A18:D18) -> 18 | G8: =F8/F18*100 -> 69.23076923
A11: ПК | B11: ЖК | C11: МБ | D11: КОРОБКА | E11: Дней | F11: План
A12: 1.2 | B12: 1.5 | C12: 0.2 | D12: 0.12 | E12: 21 | F12: 26
A13: 1.2 | B13: 1.5 | C13: 0.2 | D13: 0.12 | E13: 18 | F13: 26
A14: 1.2 | B14: 1.5 | C14: 0.2 | D14: 0.12 | F14: 26
A15: 1.2 | B15: 1.5 | C15: 0.2 | D15: 0.12 | F15: 26
A16: 1.2 | B16: 1.5 | C16: 0.2 | D16: 0.12 | F16: 26
A17: 1.2 | B17: 1.5 | C17: 0.2 | D17: 0.12 | F17: 26
A18: 1.2 | B18: 1.5 | C18: 0.2 | D18: 0.12 | F18: 26

Sheet Лист2

Sheet Лист3
